[Event "Hungarian Youth-ch U18 2022"]
[Site "Eger"]
[Date "2022.07.31"]
[Round "9.4"]
[White "Ivan, Reka Gyongyver"]
[Black "Toth, Nikoletta"]
[Result "1-0"]
[ECO "D00"]
[WhiteElo "1877"]
[BlackElo "1914"]
[Annotator "RC"]
[PlyCount "89"]
[EventDate "2022.07.21"]
[EventType "tourn"]
[EventCountry "HUN"]
[SourceTitle "playchess.com"]
[Source "ChessBase"]
[SourceQuality "1"]
[TimeControl "40/5400+30:1800+30"]

1. d4 {[%emt 0:00:33]} d5 {[%emt 0:00:33]} 2. Bf4 {[%emt 0:00:13]} Nf6 {[%emt 0:00:05]} 3. e3 {[%emt 0:00:07]} c5 {[%emt 0:00:06]} 4. c3 {[%emt 0:00:06]} Nc6 {[%emt 0:00:04]} 5. Nd2 {[%emt 0:00:08]} Bf5 {[%emt 0:00:27]} 6. Qb3 {[%emt 0:00:37]} Qd7 {[%emt 0:01:03]} 7. Ngf3 {[%emt 0:00:17]} c4 {[%emt 0:00:39]} 8. Qd1 {[%emt 0:00:08]} e6 {[%emt 0:00:05]} 9. Be2 {[%emt 0:00:49]} h6 {[%emt 0:00:17]} 10. O-O {[%emt 0:00:45]} Be7 {[%emt 0:01:04]} 11. b3 {[%emt 0:00:38]} b5 {[%emt 0:02:12]} 12. a4 {[%emt 0:00:40]} Na5 {[%emt 0:04:52]} 13. Ne5 {[%emt 0:02:00]} Qb7 {[%emt 0:04:43]} 14. axb5 {[%emt 0:01:01]} Nxb3 {[%emt 0:00:09]} 15. Nxb3 {[%emt 0:00:22]} cxb3 {[%emt 0:00:05]} 16. Qxb3 {[%emt 0:00:40]} O-O {[%emt 0:03:17]} 17. Nc6 {[%emt 0:01:59]} Ne4 {[%emt 0:01:49]} 18. Qb2 {[%emt 0:01:43]} Bd6 {[%emt 0:01:48]} 19. Bxd6 {[%emt 0:00:51]} Nxd6 {[%emt 0:00:04]} 20. Ra6 {[%emt 0:02:09]} Nc8 {[%emt 0:17:57]} 21. Rfa1 {[%emt 0:03:19]} Re8 {[%emt 0:02:19]} 22. Qa3 {[%emt 0:02:11]} Bg6 {[%emt 0:13:38]} 23. Nxa7 {[%emt 0:04:44]} Nb6 {[%emt 0:03:59]} 24. Nc6 {[%emt 0:01:49]} Qc7 {[%emt 0:00:07]} 25. Ra7 {[%emt 0:01:48]} Rxa7 {[%emt 0:02:08]} 26. Qxa7 {[%emt 0:00:09]} Qxa7 {[%emt 0:00:04]} 27. Rxa7 {[%emt 0:00:13]} Ra8 {[%emt 0:00:01]} 28. Rxa8+ {[%emt 0:01:11]} Nxa8 {[%emt 0:00:06]} 29. Ne7+ {[%emt 0:04:07]} Kf8 {[%emt 0:00:56]} 30. Nc8 {[%emt 0:00:45]} Bc2 {[%emt 0:08:10]} 31. b6 {[%emt 0:00:39]} Nxb6 {[%emt 0:00:05]} 32. Nxb6 {[%emt 0:00:06]} Ke7 {[%emt 0:00:03]} 33. c4 {[%emt 0:00:32]} dxc4 {[%emt 0:00:07]} 34. Nxc4 {[%emt 0:00:20]} Kf6 {[%emt 0:00:51]} 35. Kf1 {[%emt 0:00:18]} Ba4 {[%emt 0:00:46]} 36. Ke1 {[%emt 0:00:27]} Bc6 {[%emt 0:00:16]} 37. g3 {[%emt 0:00:12]} Be4 {[%emt 0:00:54]} 38. Kd2 {[%emt 0:00:15]} Bc6 {[%emt 0:00:10]} 39. Ne5 {[%emt 0:00:14]} Bb7 {[%emt 0:00:50]} 40. Kc3 {[%emt 0:00:00]} Ke7 {[%emt 0:00:00]} 41. Bf3 {[%emt 0:01:27]} Bc8 {[%emt 0:01:06]} 42. Kb4 {[%emt 0:00:33]} Ba6 {[%emt 0:00:35]} 43. Kc5 {[%emt 0:00:22]} Kf6 {[%emt 0:00:37]} 44. Kd6 {[%emt 0:00:29]} g6 {[%emt 0:01:02]} 45. Bc6 {[%emt 0:00:18]} 1-0

[Event "Hungarian Youth-ch U18 2022"]
[Site "Eger"]
[Date "2022.07.31"]
[Round "9.5"]
[White "Sulyok, Eszter"]
[Black "Kiss, Eniko"]
[Result "1-0"]
[ECO "A20"]
[WhiteElo "2091"]
[BlackElo "1646"]
[Annotator "RC"]
[PlyCount "43"]
[EventDate "2022.07.21"]
[EventType "tourn"]
[EventCountry "HUN"]
[SourceTitle "playchess.com"]
[Source "ChessBase"]
[SourceQuality "1"]
[TimeControl "40/5400+30:1800+30"]

1. c4 {[%emt 0:00:40]} e5 {[%emt 0:03:41]} 2. e3 {[%emt 0:01:56]} f5 {[%emt 0:06:15]} 3. Nc3 {[%emt 0:02:36]} Nf6 {[%emt 0:00:12]} 4. g3 {[%emt 0:02:17]} g6 {[%emt 0:01:29]} 5. Bg2 {[%emt 0:01:50]} Bg7 {[%emt 0:00:07]} 6. Nge2 {[%emt 0:01:13]} d6 {[%emt 0:01:05]} 7. O-O {[%emt 0:01:00]} c6 {[%emt 0:01:24]} 8. d4 {[%emt 0:02:44]} O-O {[%emt 0:01:22]} 9. Rb1 {[%emt 0:10:14]} Be6 {[%emt 0:00:54]} 10. b3 {[%emt 0:04:48]} Kh8 {[%emt 0:03:19]} 11. a4 {[%emt 0:07:24]} Qe7 {[%emt 0:03:43]} 12. Ba3 {[%emt 0:01:40]} e4 {[%emt 0:07:51]} 13. d5 {[%emt 0:04:17]} cxd5 {[%emt 0:00:57]} 14. cxd5 {[%emt 0:00:09]} Bd7 {[%emt 0:01:45]} 15. Rc1 {[%emt 0:05:49]} Ng4 {[%emt 0:03:28]} 16. Nd4 {[%emt 0:07:55]} a6 {[%emt 0:01:45]} 17. Nce2 {[%emt 0:00:42]} b5 {[%emt 0:05:17]} 18. Rc7 {[%emt 0:03:35]} Qf6 {[%emt 0:00:44]} 19. Nf4 {[%emt 0:02:19]} bxa4 {[%emt 0:01:25]} 20. bxa4 {[%emt 0:00:41]} Rf7 {[%emt 0:04:20]} 21. Qb3 {[%emt 0:03:56]} a5 {[%emt 0:02:34]} 22. Qb7 {[%emt 0:00:55]} 1-0

[Event "Hungarian Youth-ch U18 2022"]
[Site "Eger"]
[Date "2022.07.31"]
[Round "9.6"]
[White "Juhasz, Judit"]
[Black "Koltai, Dora"]
[Result "1-0"]
[ECO "B12"]
[WhiteElo "2037"]
[BlackElo "1764"]
[Annotator "RC"]
[PlyCount "47"]
[EventDate "2022.07.21"]
[EventType "tourn"]
[EventCountry "HUN"]
[SourceTitle "playchess.com"]
[Source "ChessBase"]
[SourceQuality "1"]
[TimeControl "40/5400+30:1800+30"]

1. e4 {[%emt 0:00:31]} c6 {[%emt 0:00:39]} 2. d4 {[%emt 0:00:07]} d5 {[%emt 0:00:06]} 3. e5 {[%emt 0:00:14]} Bf5 {[%emt 0:00:17]} 4. h4 {[%emt 0:00:05]} h5 {[%emt 0:00:08]} 5. Bd3 {[%emt 0:00:38]} Bxd3 {[%emt 0:00:13]} 6. Qxd3 {[%emt 0:00:05]} Qa5+ {[%emt 0:00:28]} 7. Nd2 {[%emt 0:00:45]} e6 {[%emt 0:00:40]} 8. Ne2 {[%emt 0:00:17]} Nd7 {[%emt 0:06:31]} 9. O-O {[%emt 0:01:56]} Ne7 {[%emt 0:01:47]} 10. b3 {[%emt 0:02:13]} Nf5 {[%emt 0:01:20]} 11. Nf3 {[%emt 0:00:28]} Be7 {[%emt 0:02:30]} 12. g3 {[%emt 0:02:12]} O-O {[%emt 0:09:16]} 13. Bg5 {[%emt 0:04:52]} Bxg5 {[%emt 0:07:17]} 14. hxg5 {[%emt 0:00:40]} g6 {[%emt 0:04:47]} 15. g4 {[%emt 0:03:10]} hxg4 {[%emt 0:08:55]} 16. Nh2 {[%emt 0:01:30]} Kg7 {[%emt 0:09:11]} 17. Nxg4 {[%emt 0:05:15]} Rh8 {[%emt 0:04:30]} 18. Nf6 {[%emt 0:02:30]} Qc7 {[%emt 0:02:16]} 19. Ng3 {[%emt 0:02:26]} Rh4 {[%emt 0:07:02]} 20. Nxf5+ {[%emt 0:02:56]} exf5 {[%emt 0:05:29]} 21. Qg3 {[%emt 0:05:50]} Rah8 {[%emt 0:04:33]} 22. Qxh4 {[%emt 0:04:06]} Nxe5 {[%emt 0:04:13]} 23. Ne8+ {[%emt 0:02:16]} Rxe8 {[%emt 0:01:04]} 24. dxe5 {[%emt 0:00:18]} 1-0

[Event "Hungarian Youth-ch U18 2022"]
[Site "Eger"]
[Date "2022.07.31"]
[Round "9.7"]
[White "Buri, Kata"]
[Black "Somogyi, Barbara"]
[Result "0-1"]
[ECO "B03"]
[WhiteElo "1730"]
[BlackElo "1682"]
[Annotator "NA RC"]
[PlyCount "56"]
[EventDate "2022.07.21"]
[EventType "tourn"]
[EventCountry "HUN"]
[SourceTitle "playchess.com"]
[Source "ChessBase"]
[SourceQuality "1"]
[TimeControl "40/5400+30:1800+30"]

1. e4 {[%emt 0:05:37]} Nf6 {[%emt 0:00:42]} 2. e5 {[%emt 0:00:35]} Nd5 {[%emt 0:00:10]} 3. c4 {[%emt 0:00:24]} Nb6 {[%emt 0:00:19]} 4. d4 {[%emt 0:00:17]} d6 {[%emt 0:00:36]} 5. exd6 {[%emt 0:01:02]} cxd6 {[%emt 0:00:13]} 6. Nc3 {[%emt 0:01:00]} g6 {[%emt 0:00:56]} 7. Nf3 {[%emt 0:02:49]} Bg7 {[%emt 0:01:13]} 8. Be2 {[%emt 0:04:18]} O-O {[%emt 0:00:29]} 9. O-O {[%emt 0:00:07]} Bg4 {[%emt 0:01:33]} 10. Qc2 {[%emt 0:07:14]} Bxf3 {[%emt 0:02:38]} 11. Bxf3 {[%emt 0:00:08]} Nc6 {[%emt 0:01:36]} 12. Bxc6 {[%emt 0:01:04]} bxc6 {[%emt 0:00:25]} 13. c5 {[%emt 0:01:29]} Nd5 {[%emt 0:04:54]} 14. Nxd5 {[%emt 0:01:23]} cxd5 {[%emt 0:00:12]} 15. Rd1 {[%emt 0:00:43]} Rc8 {[%emt 0:02:31]} 16. Rb1 {[%emt 0:07:55]} e5 {[%emt 0:05:43]} 17. b4 {[%emt 0:06:23]} exd4 {[%emt 0:06:32]} 18. Qd2 {[%emt 0:07:06]} dxc5 {[%emt 0:02:15]} 19. bxc5 {[%emt 0:00:08]} Re8 {[%emt 0:04:34]} 20. Ba3 {[%emt 0:00:45]} Qc7 {[%emt 0:09:38]} 21. Re1 {[%emt 0:05:09]} Qc6 {[%emt 0:06:20]} 22. Rec1 {[%emt 0:05:34]} Qa6 {[%emt 0:02:41]} 23. Bb2 {[%emt 0:08:17]} Re2 {[%emt 0:08:20]} 24. Qf4 {[%emt 0:01:20]} Re4 {[%emt 0:02:52]} 25. Qg5 {[%emt 0:03:14]} Qe6 {[%emt 0:03:42]} 26. h3 {[%emt 0:02:00]} Re8 {[%emt 0:05:11]} 27. Ba3 {[%emt 0:03:18]} Be5 {[%emt 0:02:01]} 28. Rf1 {[%emt 0:08:08]} Bf4 {[%emt 0:01:19]} 0-1